fUST/lending_fUST_20240317
["ID","MTS","AMOUNT","RATE_DAILY","PERIOD"]
[319300680,1710647438715,-500.0,0.00018629,2]
[319300681,1710647438724,-501.64548822,0.00018629,2]
[319300682,1710647438733,-500.0,0.00018629,2]
[319300683,1710647438742,-331.26261681,0.00018629,2]
[319300684,1710647438751,-500.0,0.00018629,2]
[319300685,1710647438760,-545.40640027,0.00018629,2]
[319300686,1710647438770,-531.50363127,0.00018629,2]
[319300687,1710647438779,-500.0,0.00018629,2]
[319300688,1710647438788,-500.0,0.00018629,2]
[319300689,1710647438797,-500.0,0.00018629,2]
[319300690,1710647438806,-502.04348385,0.00018629,2]
[319300691,1710647438815,-500.0,0.00018629,2]
[319300692,1710647438824,-500.0,0.00018629,2]
[319300693,1710647438833,-500.0,0.00018629,2]
[319300694,1710647438842,-500.0,0.00018629,2]
[319300695,1710647438851,-500.0,0.00018629,2]
[319300696,1710647438860,-521.11959313,0.00018629,2]
[319300697,1710647438869,-505.5374744,0.00018629,2]
[319300698,1710647438877,-500.0,0.00018629,2]
[319300699,1710647438886,-299.91809719,0.00018629,2]
[319300700,1710647438895,-500.0,0.00018629,2]
[319300701,1710647438904,-500.0,0.00018629,2]
[319300702,1710647438913,-500.0,0.00018629,2]
[319300703,1710647438922,-403.86005873,0.00018629,2]
[319300704,1710647438931,-500.0,0.00018629,2]
[319300705,1710647438940,-500.0,0.00018629,2]
[319300706,1710647438949,-346.44604958,0.00018629,2]
[319300708,1710647438958,-500.0,0.00018629,2]
[319300710,1710647438967,-500.0,0.00018629,2]
[319300712,1710647438975,-500.0,0.00018629,2]
[319300714,1710647438984,-500.0,0.00018629,2]
[319300715,1710647438993,-81.16819297,0.00018629,2]
[319300718,1710647439006,-420.75241858,0.00018629,2]
[319300720,1710647439015,-500.0,0.00018629,2]
[319300722,1710647439024,-304.6338014,0.00018629,2]
[319301051,1710647442552,-195.3661986,0.00018629,2]
[319301053,1710647442562,-500.0,0.00018629,2]
[319301055,1710647442571,-305.9304894,0.00018629,2]
[319301065,1710647442665,-194.0695106,0.00018629,2]
[319301067,1710647442675,-500.0,0.00018629,2]
[319301069,1710647442686,-500.0,0.00018629,2]
[319301071,1710647442696,-500.0,0.00018629,2]
[319301073,1710647442706,-320.31733258,0.00018629,2]
[319301075,1710647442716,-217.40732678,0.00018629,2]
[319301077,1710647442727,-500.0,0.00018629,2]
[319301079,1710647442736,-500.0,0.00018629,2]
[319301081,1710647442746,-500.0,0.00018629,2]
[319301083,1710647442756,-500.0,0.00018629,2]
[319301085,1710647442766,-504.07967702,0.00018629,2]
[319301087,1710647442776,-500.0,0.00018629,2]
[319301089,1710647442785,-500.0,0.00018629,2]
[319301091,1710647442795,-500.0,0.00018629,2]
[319301092,1710647442806,-500.0,0.00018629,2]
[319301095,1710647442815,-217.26171471,0.00018629,2]
[319301097,1710647442824,-500.0,0.00018629,2]
[319301101,1710647442834,-500.0,0.00018629,2]
[319301105,1710647442843,-500.0,0.00018629,2]
[319301125,1710647442952,-500.0,0.00018629,2]
[319301129,1710647442968,-500.0,0.00018629,2]
[319301133,1710647442977,-618.49675117,0.00018629,2]
[319301137,1710647442986,-555.57243719,0.00018629,2]
[319301142,1710647442995,-500.0,0.00018629,2]
[319301146,1710647443004,-500.0,0.00018629,2]
[319301150,1710647443013,-500.0,0.00018629,2]
[319301153,1710647443022,-500.0,0.00018629,2]
[319301157,1710647443031,-500.0,0.00018629,2]
[319301160,1710647443040,-389.58741218,0.00018629,2]
[319301232,1710647443469,-110.41258782,0.00018629,2]
[319301234,1710647443479,-502.11910536,0.00018629,2]
[319301236,1710647443488,-500.0,0.00018629,2]
[319301238,1710647443497,-239.46830682,0.00018629,2]
[319301240,1710647443509,-261.9599716,0.00018629,2]
[319301242,1710647443518,-500.0,0.00018629,2]
[319301244,1710647443528,-501.14236167,0.00018629,2]
[319301246,1710647443538,-616.91646955,0.00018629,2]
[319301248,1710647443548,-500.0,0.00018629,2]
[319301250,1710647443559,-501.94667696,0.00018629,2]
[319301252,1710647443569,-500.0,0.00018629,2]
[319301254,1710647443579,-500.0,0.00018629,2]
[319301256,1710647443588,-500.0,0.00018629,2]
[319301258,1710647443598,-500.0,0.00018629,2]
[319301260,1710647443611,-500.0,0.00018629,2]
[319301262,1710647443620,-258.03802724,0.00018629,2]
[319301264,1710647443630,-542.70058773,0.00018629,2]
[319301266,1710647443639,-584.18384137,0.00018629,2]
[319301268,1710647443649,-505.57308871,0.00018629,2]
[319301270,1710647443658,-290.59,0.00018629,2]
[319301272,1710647443667,-500.0,0.00018629,2]
[319301275,1710647443685,-500.0,0.00018629,2]
[319301277,1710647443697,-500.0,0.00018629,2]
[319301279,1710647443707,-315.55742792,0.00018629,2]
[319301282,1710647443719,-500.39626835,0.00018629,2]
[319301284,1710647443730,-500.0,0.00018629,2]
[319301286,1710647443740,-500.0,0.00018629,2]
[319301287,1710647443750,-461.102931,0.00018629,2]
[319301290,1710647443759,-10498.96786167,0.0001863,2]
[319302153,1710648291975,337.02542978,0.00017499,2]
[319302154,1710648368506,337.02542978,0.00017499,2]
[319302155,1710648545607,300.0,0.00017499,2]
[319302199,1710648632557,-279.19192,0.000175,2]
[319302201,1710648632566,-8020.4257762,0.000175,2]
[319302202,1710648632574,-310.66198719,0.00017697,2]
[319302204,1710648632635,-259.94485977,0.0001843,2]
[319302206,1710648632645,-5328.3242545,0.00018504,2]
[319302208,1710648632655,-2002.44041606,0.00018505,2]
[319302210,1710648632664,-600.50775189,0.0001853,2]
[319302211,1710648632674,-58285.77501333,0.0001853,2]
[319302302,1710648638571,-1006.20063554,0.0001853,2]
[319302404,1710648643577,-984.0,0.0001853,2]
[319302405,1710648643589,-7354.77340545,0.0001853,2]
[319302406,1710648643601,-1005.42950247,0.000186,2]
[319302407,1710648643612,-187.37817515,0.00018628,2]
[319302408,1710648643623,-376.73065005,0.00018628,2]
[319302409,1710648643634,-221.72769363,0.00018628,2]
[319302410,1710648643643,-307.74796753,0.00018628,2]
[319302411,1710648643653,-155.33837616,0.00018628,2]
[319302412,1710648643662,-291.77963663,0.00018628,2]
[319302413,1710648643672,-189.56913639,0.00018628,2]
[319302414,1710648643681,-547.85869738,0.00018628,2]
[319302415,1710648643690,-500.0,0.00018628,2]
[319302417,1710648643700,-500.0,0.00018628,2]
[319302419,1710648643709,-500.0,0.00018628,2]
[319302420,1710648643718,-330.60044257,0.00018628,2]
[319302421,1710648643727,-500.0,0.00018628,2]
[319302422,1710648643736,-445.32310676,0.00018628,2]
[319302423,1710648643746,-503.31807795,0.00018628,2]
[319302424,1710648643755,-500.0,0.00018628,2]
[319302425,1710648643765,-500.0,0.00018628,2]
[319302426,1710648643775,-500.0,0.00018628,2]
[319302427,1710648643783,-349.8824556,0.00018628,2]
[319302428,1710648643793,-500.0,0.00018628,2]
[319302429,1710648643802,-500.0,0.00018628,2]
[319302430,1710648643813,-500.0,0.00018628,2]
[319302431,1710648643826,-500.0,0.00018628,2]
[319302432,1710648643837,-500.0,0.00018628,2]
[319302433,1710648643847,-500.0,0.00018628,2]
[319302434,1710648643856,-500.0,0.00018628,2]
[319302435,1710648643866,-500.0,0.00018628,2]
[319302436,1710648643876,-500.0,0.00018628,2]
[319302437,1710648643885,-500.0,0.00018628,2]
[319302438,1710648643895,-500.0,0.00018628,2]
[319302439,1710648643905,-500.0,0.00018628,2]
[319302440,1710648643915,-500.0,0.00018628,2]
[319302441,1710648643925,-500.0,0.00018628,2]
[319302442,1710648643937,-493.38943377,0.00018628,2]
[319302443,1710648643948,-500.0,0.00018628,2]
[319302444,1710648643958,-500.0,0.00018628,2]
[319302445,1710648643967,-500.0,0.00018628,2]
[319302446,1710648643977,-500.0,0.00018628,2]
[319302447,1710648643986,-500.0,0.00018628,2]
[319302448,1710648643997,-500.0,0.00018628,2]
[319302449,1710648644006,-500.0,0.00018628,2]
[319302450,1710648644019,-500.0,0.00018628,2]
[319302451,1710648644029,-500.0,0.00018628,2]
[319302452,1710648644039,-600.95433613,0.00018628,2]
[319302453,1710648644048,-500.0,0.00018628,2]
[319302454,1710648644058,-454.34723531,0.00018628,2]
[319302455,1710648644071,-500.22004161,0.00018628,2]
[319302456,1710648644081,-2600.35966452,0.00018629,2]
[319302457,1710648644092,-332.2731213,0.00018629,2]
[319302458,1710648644102,-500.0,0.00018629,2]
[319302459,1710648644111,-500.0,0.00018629,2]
[319302460,1710648644121,-500.0,0.00018629,2]
[319302461,1710648644131,-503.92314508,0.00018629,2]
[319302462,1710648644141,-571.34437557,0.00018629,2]
[319302463,1710648644151,-300.0,0.00018629,2]
[319302464,1710648644160,-303.5,0.00018629,2]
[319302465,1710648644169,-300.0,0.00018629,2]
[319302466,1710648644179,-500.0,0.00018629,2]
[319302467,1710648644189,-500.0,0.00018629,2]
[319302468,1710648644198,-500.0,0.00018629,2]
[319302469,1710648644207,-509.09560764,0.00018629,2]
[319302470,1710648644217,-504.84247197,0.00018629,2]
[319302471,1710648644227,-500.0,0.00018629,2]
[319302472,1710648644237,-500.0,0.00018629,2]
[319302473,1710648644246,-500.0,0.00018629,2]
[319302474,1710648644256,-500.0,0.00018629,2]
[319302475,1710648644266,-500.0,0.00018629,2]
[319302476,1710648644275,-500.0,0.00018629,2]
[319302477,1710648644285,-500.0,0.00018629,2]
[319302478,1710648644295,-355.32,0.00018629,2]
[319302479,1710648644304,-4952402.97324378,0.0001863,2]
[319302527,1710648646717,-59583.46608047,0.0001863,2]
[319302534,1710648646772,-33708.64283127,0.0001863,2]
[319303261,1710649216535,155.00465014,0.0001736,2]
[319303262,1710649224320,155.00465014,0.0001736,2]
[319303263,1710649281582,274.902091,0.00017492,2]
[319303312,1710649832760,-155.00465014,0.00017524,2]
[319303313,1710649832769,-274.902091,0.00017525,2]
[319303314,1710649832778,-336.85111185,0.00017697,2]
[319303315,1710649832786,-171.01281348,0.0001843,2]
[319303316,1710649832795,-1000.0,0.0001851,2]
[319303317,1710649832804,-5563.08650232,0.0001853,2]
[319303318,1710649832814,-49870.54823422,0.0001853,2]
[319303319,1710649832823,-1000.0,0.0001853,2]
[319303320,1710649832833,-1000.0,0.00018616,2]
[319303321,1710649832842,-3430.93079802,0.00018628,2]
[319303322,1710649832851,-323.01698505,0.00018628,2]
[319303323,1710649832860,-302.5146203,0.00018628,2]
[319303324,1710649832869,-187.42109409,0.00018628,2]
[319303325,1710649832879,-938.60061694,0.00018629,2]
[319303326,1710649832890,-500.0,0.00018629,2]
[319303327,1710649832900,-500.0,0.00018629,2]
[319303328,1710649832911,-500.0,0.00018629,2]
[319303329,1710649832920,-224.02,0.00018629,2]
[319303330,1710649832931,-500.0,0.00018629,2]
[319303331,1710649832941,-500.0,0.00018629,2]
[319303332,1710649832950,-500.0,0.00018629,2]
[319303333,1710649832960,-501.34915919,0.00018629,2]
[319303334,1710649832971,-500.0,0.00018629,2]
[319303335,1710649832980,-500.0,0.00018629,2]
[319303336,1710649832989,-500.0,0.00018629,2]
[319303337,1710649832998,-500.0,0.00018629,2]
[319303338,1710649833009,-298.892029,0.00018629,2]
[319303339,1710649833019,-500.0,0.00018629,2]
[319303340,1710649833029,-500.0,0.00018629,2]
[319303341,1710649833038,-500.0,0.00018629,2]
[319303342,1710649833047,-500.0,0.00018629,2]
[319303343,1710649833058,-500.0,0.00018629,2]
[319303344,1710649833067,-500.0,0.00018629,2]
[319303345,1710649833087,-500.0,0.00018629,2]
[319303346,1710649833098,-500.0,0.00018629,2]
[319303347,1710649833107,-500.0,0.00018629,2]
[319303348,1710649833117,-500.0,0.00018629,2]
[319303349,1710649833127,-500.0,0.00018629,2]
[319303350,1710649833136,-500.0,0.00018629,2]
[319303351,1710649833285,-500.0,0.00018629,2]
[319303352,1710649833294,-500.0,0.00018629,2]
[319303353,1710649833303,-500.0,0.00018629,2]
[319303354,1710649833314,-500.0,0.00018629,2]
[319303355,1710649833323,-500.0,0.00018629,2]
[319303356,1710649833331,-500.0,0.00018629,2]
[319303357,1710649833339,-532.02809948,0.00018629,2]
[319303358,1710649833349,-273.63598118,0.00018629,2]
[319303359,1710649833358,-504.13680758,0.00018629,2]
[319303360,1710649833367,-500.0,0.00018629,2]
[319303361,1710649833378,-533.30054316,0.00018629,2]
[319303362,1710649833391,-500.0,0.00018629,2]
[319303363,1710649833401,-500.0,0.00018629,2]
[319303364,1710649833410,-500.0,0.00018629,2]
[319303365,1710649833420,-635.88,0.00018629,2]
[319303366,1710649833430,-500.0,0.00018629,2]
[319303367,1710649833440,-548.29540421,0.00018629,2]
[319303368,1710649833449,-500.0,0.00018629,2]
[319303369,1710649833458,-500.0,0.00018629,2]
[319303370,1710649833468,-500.0,0.00018629,2]
[319303371,1710649833479,-500.0,0.00018629,2]
[319303372,1710649833488,-500.0,0.00018629,2]
[319303373,1710649833497,-500.0,0.00018629,2]
[319303374,1710649833508,-500.0,0.00018629,2]
[319303375,1710649833517,-500.0,0.00018629,2]
[319303376,1710649833527,-500.0,0.00018629,2]
[319303377,1710649833536,-500.0,0.00018629,2]
[319303378,1710649833545,-500.0,0.00018629,2]
[319303379,1710649833554,-500.0,0.00018629,2]
[319303380,1710649833565,-500.0,0.00018629,2]
[319303381,1710649833574,-500.0,0.00018629,2]
[319303382,1710649833583,-500.0,0.00018629,2]
[319303383,1710649833592,-210.64,0.00018629,2]
[319303384,1710649833602,-500.0,0.00018629,2]
[319303385,1710649833612,-500.0,0.00018629,2]
[319303386,1710649833621,-500.0,0.00018629,2]
[319303387,1710649833632,-500.0,0.00018629,2]
[319303388,1710649833641,-507.98345173,0.00018629,2]
[319303389,1710649833650,-500.0,0.00018629,2]
[319303390,1710649833660,-33572.0906119,0.0001863,2]
[319303391,1710649833672,-73283.92971286,0.0001863,2]
[319303392,1710649833685,-5115.54493544,0.0001863,2]
[319303452,1710649840935,-1000.0,0.00018558,2]
[319303453,1710649840944,-16810.11194981,0.0001863,2]
[319303463,1710649844274,-500.0,0.0001863,2]
[319303600,1710650064920,910.71908416,0.00017418,2]
[319303601,1710650109659,155.00465014,0.00017338,2]
[319303602,1710650118754,155.00465014,0.00017338,2]
[319303603,1710650235456,224.2686352,0.00017392,2]
[319303605,1710650858319,-155.00310006,0.00017667,2]
[319303606,1710650858341,-155.00310006,0.00017668,2]
[319303607,1710650858365,-3006.200636,0.00017684,2]
[319303608,1710650858386,-336.85111185,0.00017697,2]
[319303609,1710650858409,-325.42354236,0.00018,2]
[319303611,1710651031920,-155.00310006,0.00018072,2]
[319303612,1710651031930,-155.00310006,0.00018072,2]
[319303613,1710651031939,-630.43694528,0.00018073,2]
[319303614,1710651031948,-153.38336131,0.00018509,2]
[319303615,1710651031958,-153.38336129,0.00018516,2]
[319303616,1710651031967,-153.38336129,0.00018522,2]
[319303617,1710651031977,-509.47938054,0.00018529,2]
[319303618,1710651031987,-500.0,0.00018529,2]
[319303619,1710651031996,-153.38336129,0.00018529,2]
[319303620,1710651032006,-665.75285245,0.0001853,2]
[319303621,1710651032015,-107815.33521832,0.0001853,2]
[319303622,1710651032157,-1997.31166231,0.00018609,2]
[319303623,1710651032170,-377.72719156,0.00018628,2]
[319303624,1710651032179,-1956.3222818,0.00018628,2]
[319303625,1710651032189,-10361.69842447,0.00018628,2]
[319303626,1710651032198,-406.76405164,0.00018628,2]
[319303627,1710651032207,-182.50733804,0.00018628,2]
[319303628,1710651032216,-200.56709466,0.00018628,2]
[319303629,1710651032226,-301.62614624,0.00018628,2]
[319303630,1710651032235,-674.15543507,0.00018628,2]
[319303631,1710651032244,-3098.14461169,0.00018628,2]
[319303632,1710651032253,-712.3278974,0.00018628,2]
[319303633,1710651032262,-598.16150128,0.00018628,2]
[319303634,1710651032271,-317.03276015,0.00018628,2]
[319303635,1710651032280,-791.94009913,0.00018628,2]
[319303636,1710651032290,-209.91680883,0.00018628,2]
[319303637,1710651032300,-929.3282691,0.00018628,2]
[319303638,1710651032309,-322.05842094,0.00018628,2]
[319303639,1710651032318,-156.30372902,0.00018628,2]
[319303640,1710651032328,-155.48905594,0.00018628,2]
[319303641,1710651032337,-287.80035116,0.00018628,2]
[319303642,1710651032347,-172.22991387,0.00018628,2]
[319303643,1710651032356,-155.5690051,0.00018628,2]
[319303644,1710651032365,-748.21812988,0.00018628,2]
[319303645,1710651032374,-619.49415323,0.00018628,2]
[319303646,1710651032383,-212.67234268,0.00018628,2]
[319303647,1710651032393,-2495.08229596,0.00018628,2]
[319303648,1710651032403,-160.97660551,0.00018628,2]
[319303649,1710651032413,-175.37302991,0.00018628,2]
[319303650,1710651032422,-155.29391039,0.00018628,2]
[319303651,1710651032430,-500.0,0.00018628,2]
[319303652,1710651032440,-500.0,0.00018628,2]
[319303653,1710651032449,-500.0,0.00018628,2]
[319303654,1710651032458,-500.0,0.00018628,2]
[319303655,1710651032467,-500.0,0.00018628,2]
[319303656,1710651032476,-327.17908683,0.00018628,2]
[319303657,1710651032486,-500.0,0.00018628,2]
[319303658,1710651032494,-500.0,0.00018628,2]
[319303659,1710651032504,-504.45725663,0.00018628,2]
[319303660,1710651032513,-47693.81006691,0.00018629,2]
[319303661,1710651032522,-431.67424545,0.00018629,2]
[319303662,1710651032531,-546.15,0.00018629,2]
[319303663,1710651032540,-546.15,0.00018629,2]
[319303664,1710651032550,-546.15,0.00018629,2]
[319303665,1710651032559,-546.15,0.00018629,2]
[319303666,1710651032568,-546.15,0.00018629,2]
[319303667,1710651032577,-546.15,0.00018629,2]
[319303668,1710651032586,-546.15,0.00018629,2]
[319303669,1710651032595,-546.15,0.00018629,2]
[319303670,1710651032604,-546.15,0.00018629,2]
[319303671,1710651032613,-546.15,0.00018629,2]
[319303672,1710651032622,-546.15,0.00018629,2]
[319303673,1710651032631,-546.15,0.00018629,2]
[319303674,1710651032641,-546.15,0.00018629,2]
[319303675,1710651032651,-546.15,0.00018629,2]
[319303676,1710651032660,-546.15,0.00018629,2]
[319303677,1710651032672,-546.15,0.00018629,2]
[319303678,1710651032681,-546.15,0.00018629,2]
[319303679,1710651032690,-546.15,0.00018629,2]
[319303680,1710651032700,-546.15,0.00018629,2]
[319303681,1710651032709,-546.15,0.00018629,2]
[319303682,1710651032718,-546.15,0.00018629,2]
[319303683,1710651032727,-546.15,0.00018629,2]
[319303684,1710651032737,-546.15,0.00018629,2]
[319303685,1710651032746,-546.27,0.00018629,2]
[319303686,1710651032756,-500.0,0.00018629,2]
[319303687,1710651032766,-500.0,0.00018629,2]
[319303688,1710651032774,-500.0,0.00018629,2]
[319303689,1710651032783,-500.0,0.00018629,2]
[319303690,1710651032792,-500.0,0.00018629,2]
[319303691,1710651032802,-500.0,0.00018629,2]
[319303692,1710651032810,-500.0,0.00018629,2]
[319303693,1710651032819,-503.28806528,0.00018629,2]
[319303694,1710651032828,-649.02,0.00018629,2]
[319303695,1710651032837,-649.02,0.00018629,2]
[319303696,1710651032846,-649.02,0.00018629,2]
[319303697,1710651032854,-649.02,0.00018629,2]
[319303698,1710651032864,-649.02,0.00018629,2]
[319303699,1710651032873,-649.02,0.00018629,2]
[319303700,1710651032882,-649.02,0.00018629,2]
[319303701,1710651032890,-649.02,0.00018629,2]
[319303702,1710651032899,-649.02,0.00018629,2]
[319303703,1710651032908,-649.02,0.00018629,2]
[319303704,1710651032917,-649.02,0.00018629,2]
[319303705,1710651032926,-649.02,0.00018629,2]
[319303706,1710651032935,-649.02,0.00018629,2]
[319303707,1710651032943,-649.02,0.00018629,2]
[319303708,1710651032952,-649.02,0.00018629,2]
[319303709,1710651032961,-649.02,0.00018629,2]
[319303710,1710651032970,-649.02,0.00018629,2]
[319303711,1710651032979,-649.02,0.00018629,2]
[319303712,1710651032988,-649.02,0.00018629,2]
[319303713,1710651032997,-649.02,0.00018629,2]
[319303714,1710651033006,-649.02,0.00018629,2]
[319303715,1710651033014,-649.02,0.00018629,2]
[319303716,1710651033023,-649.02,0.00018629,2]
[319303717,1710651033033,-649.14,0.00018629,2]
[319303718,1710651033046,-500.0,0.00018629,2]
[319303719,1710651033055,-500.0,0.00018629,2]
[319303720,1710651033063,-500.0,0.00018629,2]
[319303721,1710651033074,-500.0,0.00018629,2]
[319303722,1710651033083,-500.0,0.00018629,2]
[319303723,1710651033093,-228.36928836,0.00018629,2]
[319303724,1710651033103,-500.0,0.00018629,2]
[319303725,1710651033112,-500.0,0.00018629,2]
[319303726,1710651033122,-500.0,0.00018629,2]
[319303727,1710651033132,-503.65199133,0.00018629,2]
[319303728,1710651033141,-500.0,0.00018629,2]
[319303729,1710651033150,-500.0,0.00018629,2]
[319303730,1710651033159,-500.0,0.00018629,2]
[319303731,1710651033169,-240.56102173,0.00018629,2]
[319303732,1710651033178,-500.0,0.00018629,2]
[319303733,1710651033187,-342.74152748,0.00018629,2]
[319303734,1710651033196,-675.91,0.00018629,2]
[319303735,1710651033206,-675.91,0.00018629,2]
[319303736,1710651033215,-675.91,0.00018629,2]
[319303737,1710651033225,-675.91,0.00018629,2]
[319303738,1710651033235,-500.0,0.00018629,2]
[319303739,1710651033245,-675.91,0.00018629,2]
[319303740,1710651033255,-511.64,0.00018629,2]
[319303741,1710651033264,-675.91,0.00018629,2]
[319303742,1710651033275,-675.91,0.00018629,2]
[319303743,1710651033284,-500.0,0.00018629,2]
[319303744,1710651033294,-500.0,0.00018629,2]
[319303745,1710651033303,-675.91,0.00018629,2]
[319303746,1710651033312,-675.91,0.00018629,2]
[319303747,1710651033321,-500.0,0.00018629,2]
[319303748,1710651033331,-500.0,0.00018629,2]
[319303749,1710651033340,-500.0,0.00018629,2]
[319303750,1710651033350,-675.91,0.00018629,2]
[319303751,1710651033359,-500.0,0.00018629,2]
[319303752,1710651033368,-675.91,0.00018629,2]
[319303753,1710651033378,-500.0,0.00018629,2]
[319303754,1710651033387,-675.91,0.00018629,2]
[319303755,1710651033397,-500.0,0.00018629,2]
[319303756,1710651033406,-675.91,0.00018629,2]
[319303757,1710651033415,-500.0,0.00018629,2]
[319303758,1710651033424,-675.91,0.00018629,2]
[319303759,1710651033434,-500.0,0.00018629,2]
[319303760,1710651033443,-675.91,0.00018629,2]
[319303761,1710651033453,-310.53228317,0.00018629,2]
[319303762,1710651033463,-675.91,0.00018629,2]
[319303763,1710651033472,-675.91,0.00018629,2]
[319303764,1710651033482,-675.91,0.00018629,2]
[319303765,1710651033491,-675.91,0.00018629,2]
[319303766,1710651033501,-675.91,0.00018629,2]
[319303767,1710651033510,-675.91,0.00018629,2]
[319303768,1710651033520,-675.91,0.00018629,2]
[319303769,1710651033529,-675.91,0.00018629,2]
[319303770,1710651033540,-676.0271395,0.00018629,2]
[319303771,1710651033549,-500.0,0.00018629,2]
[319303772,1710651033558,-500.0,0.00018629,2]
[319303773,1710651033567,-509.19966385,0.00018629,2]
[319303774,1710651033576,-2735.9,0.00018629,2]
[319303775,1710651033585,-2735.9,0.00018629,2]
[319303776,1710651033594,-2735.9,0.00018629,2]
[319303777,1710651033604,-2735.9,0.00018629,2]
[319303778,1710651033614,-2735.9,0.00018629,2]
[319303779,1710651033623,-2735.9,0.00018629,2]
[319303780,1710651033632,-2735.9,0.00018629,2]
[319303781,1710651033641,-2735.9,0.00018629,2]
[319303782,1710651033650,-2735.9,0.00018629,2]
[319303783,1710651033659,-2735.9,0.00018629,2]
[319303784,1710651033676,-2735.9,0.00018629,2]
[319303785,1710651033685,-2735.9,0.00018629,2]
[319303786,1710651033695,-2735.9,0.00018629,2]
[319303787,1710651033704,-2735.9,0.00018629,2]
[319303788,1710651033716,-2735.9,0.00018629,2]
[319303789,1710651033724,-2735.9,0.00018629,2]
[319303790,1710651033733,-2735.9,0.00018629,2]
[319303791,1710651033743,-2735.9,0.00018629,2]
[319303792,1710651033752,-2735.9,0.00018629,2]
[319303793,1710651033762,-2735.9,0.00018629,2]
[319303794,1710651033771,-2735.9,0.00018629,2]
[319303795,1710651033780,-2735.9,0.00018629,2]
[319303796,1710651033789,-2735.9,0.00018629,2]
[319303797,1710651033800,-2735.9587128,0.00018629,2]
[319303798,1710651033810,-501.12801588,0.00018629,2]
[319303799,1710651033819,-500.0,0.00018629,2]
[319303800,1710651033828,-500.0,0.00018629,2]
[319303801,1710651033838,-618.59501295,0.00018629,2]
[319303802,1710651033847,-500.0,0.00018629,2]
[319303803,1710651033857,-500.0,0.00018629,2]
[319303804,1710651033867,-500.0,0.00018629,2]
[319303805,1710651033877,-500.0,0.00018629,2]
[319303806,1710651033886,-500.0,0.00018629,2]
[319303807,1710651033895,-500.0,0.00018629,2]
[319303808,1710651033904,-500.0,0.00018629,2]
[319303809,1710651033914,-500.0,0.00018629,2]
[319303810,1710651033923,-500.0,0.00018629,2]
[319303811,1710651033932,-500.0,0.00018629,2]
[319303812,1710651033942,-500.0,0.00018629,2]
[319303813,1710651033951,-500.0,0.00018629,2]
[319303814,1710651033960,-500.0,0.00018629,2]
[319303815,1710651033969,-500.0,0.00018629,2]
[319303816,1710651033978,-500.0,0.00018629,2]
[319303817,1710651033987,-500.0,0.00018629,2]
[319303818,1710651033997,-500.0,0.00018629,2]
[319303819,1710651034006,-500.0,0.00018629,2]
[319303820,1710651034015,-500.0,0.00018629,2]
[319303821,1710651034024,-500.0,0.00018629,2]
[319303822,1710651034033,-500.0,0.00018629,2]
[319303823,1710651034042,-500.0,0.00018629,2]
[319303824,1710651034053,-500.0,0.00018629,2]
[319303825,1710651034062,-356.12986253,0.00018629,2]
[319303826,1710651034071,-500.0,0.00018629,2]
[319303827,1710651034080,-500.0,0.00018629,2]
[319303828,1710651034089,-500.0,0.00018629,2]
[319303829,1710651034098,-500.0,0.00018629,2]
[319303830,1710651034108,-500.0,0.00018629,2]